bitfinex-derivatives/quotes_ETHF0:USTF0_20260104
["timestamp","ask_amount","ask_price","bid_price","bid_amount"]
[1767486893863,0.00475888,3151.7,3151.0,0.00475888]
[1767486894259,6.0,3151.6,3149.6,0.5729022]
[1767486894468,0.0070923,3151.7,3149.6,0.5729022]
[1767486894659,0.0070923,3151.7,3149.7,0.5729022]
[1767486895065,0.0070923,3151.7,3149.8,4.6994029]
[1767486895367,0.59336664,3151.7,3150.4,0.00475888]
[1767486895860,0.0070923,3151.7,3150.4,0.00475888]
[1767486896758,0.59336664,3151.7,3150.4,0.00475888]
[1767486896965,0.58627434,3151.6,3150.4,0.00475888]
[1767486897668,6.58627434,3151.6,3150.4,0.00475888]
[1767486897860,0.0070923,3151.7,3150.4,0.00475888]
[1767486898771,0.0070923,3151.7,3150.4,0.57766108]
[1767486899075,0.74494434,3152.6,3150.7,0.5729022]
[1767486900266,0.58919327,3152.6,3150.4,0.00475888]
[1767486900569,0.00475888,3151.8,3150.4,0.00475888]
[1767486901666,0.65433337,3151.8,3150.4,0.00475888]
[1767486902562,0.00475888,3151.8,3150.6,0.64196523]
[1767486902968,0.00291893,3152.6,3150.8,0.64196523]
[1767486903367,0.00291893,3152.6,3150.9,0.64196523]
[1767486903560,0.00291893,3152.6,3151.1,0.64196523]
[1767486904262,0.00291893,3152.6,3151.2,6.64196523]
[1767486904662,0.64957449,3153.4,3151.6,0.64196523]
[1767486904862,0.64957449,3153.4,3152.2,0.00475888]
[1767486905566,0.80821449,3153.2,3150.6,0.64196523]
[1767486905971,0.64957449,3153.0,3150.6,4.6968314]
[1767486906173,0.64957449,3153.0,3150.7,0.64196523]
[1767486906671,0.00475888,3152.2,3150.7,0.00363223]
[1767486907875,0.00475888,3152.2,3151.1,0.00475888]
[1767486908474,0.00475888,3152.2,3151.1,0.64672411]
[1767486908663,0.00475888,3152.2,3151.2,6.64196523]
[1767486909271,0.00475888,3152.2,3151.1,0.00475888]
[1767486910874,6.0,3152.1,3151.1,0.00475888]
[1767486911071,0.64957449,3152.0,3150.7,0.00363223]
[1767486911371,0.80827449,3152.0,3150.7,0.00363223]
[1767486911571,0.64957449,3151.8,3150.7,0.00363223]
[1767486912165,0.64957449,3151.8,3150.9,0.00475888]
[1767486912367,0.1587,3151.9,3150.9,0.00475888]
[1767486912570,6.0,3151.8,3150.9,0.00475888]
[1767486913873,0.00475888,3152.2,3150.9,0.00475888]
[1767486914475,6.65433337,3152.2,3150.9,0.00475888]
[1767486915074,0.80826449,3152.1,3150.9,0.00475888]
[1767486915868,0.00475888,3152.2,3150.9,0.00475888]
[1767486916071,0.00475888,3152.2,3150.9,6.00475888]
[1767486916270,0.00475888,3152.2,3150.9,6.64672411]
[1767486918186,0.00475888,3152.2,3150.9,0.64672411]
[1767486918379,0.00475888,3152.2,3150.9,0.00475888]
[1767486919184,0.65433337,3152.2,3150.9,0.00475888]
[1767486920387,6.65433337,3152.2,3150.9,0.00475888]
[1767486920790,0.64957449,3152.1,3150.9,0.00475888]
[1767486921177,0.00475888,3152.2,3150.9,0.00475888]
[1767486921379,4.80475888,3152.2,3150.9,0.00475888]
[1767486922388,5.45433337,3152.2,3150.9,0.00475888]
[1767486922588,5.61302337,3152.2,3150.9,0.00475888]
[1767486922978,11.61302337,3152.2,3150.9,0.00475888]
[1767486923180,0.64957449,3152.1,3150.9,0.00475888]
[1767486924384,0.16344888,3152.2,3150.9,0.00475888]
[1767486924790,4.801,3152.1,3150.9,0.00475888]
[1767486925283,0.64957449,3152.0,3150.9,0.00475888]
[1767486925688,0.64957449,3152.0,3150.7,0.00363223]
[1767486925883,0.64957449,3151.8,3150.7,0.00363223]
[1767486926186,0.64957449,3151.4,3149.2,5.74467211]
[1767486926591,0.64957449,3151.4,3149.3,0.64196523]
[1767486926791,0.00475888,3150.7,3150.0,0.00475888]
[1767486927198,0.00834421,3150.7,3150.0,0.00874739]
[1767486934687,0.00358533,3150.7,3150.0,6.00874739]
[1767486934894,4.801,3151.3,3150.0,6.00874739]
[1767486935094,4.801,3151.3,3150.0,0.00874739]
[1767486935500,0.15872,3151.5,3150.0,0.00874739]
[1767486935701,4.802,3151.4,3150.0,0.00874739]
[1767486935997,0.00475888,3151.1,3150.0,0.00874739]
[1767486938501,6.71632667,3151.1,3150.0,0.00874739]
[1767486938904,0.71156779,3151.0,3149.4,1.789]
[1767486939903,0.71156779,3151.0,3149.4,1.79291319]
[1767486940094,0.71156779,3151.0,3149.9,0.00475888]
[1767486941596,6.71156779,3150.9,3149.9,0.00475888]
[1767486942008,0.71156779,3150.8,3149.9,0.00475888]
[1767486942189,0.71156779,3150.8,3149.4,0.00391319]
[1767486942590,0.71156779,3150.7,3149.4,0.00391319]
[1767486943203,0.71156779,3150.5,3149.4,0.00391319]
[1767486943501,0.71156779,3150.3,3149.4,0.00391319]
[1767486944310,0.71156779,3150.3,3149.5,0.0031726]
[1767486944604,4.96078,3150.4,3149.5,0.0031726]
[1767486944802,4.96078,3150.4,3148.5,1.789]
[1767486944803,0.71156779,3150.3,3148.5,1.789]
[1767486945006,0.71156779,3150.3,3148.2,2.50107528]
[1767486945400,0.71156779,3150.3,3148.2,6.60314351]
[1767486945599,0.87034779,3150.3,3148.2,6.60314351]
[1767486945798,0.87034779,3150.3,3148.2,6.60720865]
[1767486946005,0.00475888,3149.6,3148.3,1.789]
[1767486946204,0.00475888,3149.6,3148.4,1.789]
[1767486949605,0.00475888,3149.6,3148.3,1.789]
[1767486952509,0.00475888,3149.6,3148.2,1.79306514]
[1767486954011,0.00475888,3149.6,3148.2,0.00406514]
[1767486954514,0.71632667,3149.6,3148.2,0.00406514]
[1767486955804,6.71632667,3149.6,3148.2,0.00406514]
[1767486956210,0.00475888,3149.6,3148.2,0.71614042]
[1767486958514,10.193,3150.6,3148.4,0.71207528]
[1767486958720,4.802,3150.8,3148.6,0.71207528]
[1767486959517,5.51356779,3150.8,3148.6,0.71207528]
[1767486959816,0.00475888,3150.0,3149.4,0.00475888]
[1767486960908,4.802,3150.8,3149.4,6.00475888]
[1767486961215,4.802,3150.8,3149.4,0.00475888]
[1767486962007,0.00475888,3150.4,3149.4,0.72940704]
[1767486963418,0.00475888,3150.4,3149.4,6.72940704]
[1767486964709,0.00475888,3150.4,3149.4,0.00475888]
[1767486965114,0.00475888,3150.4,3148.8,1.789]
[1767486965115,0.71142559,3150.2,3148.8,1.789]
[1767486965521,0.71142559,3150.2,3148.8,1.79375888]
[1767486966122,0.71142559,3150.0,3147.9,0.72464816]
[1767486966419,0.71142559,3150.0,3147.9,2.51364816]
[1767486966611,0.71142559,3150.0,3148.4,0.00475888]
[1767486968823,4.799,3150.1,3148.6,0.00475888]
[1767486970530,5.51042559,3150.1,3148.6,0.00475888]
[1767486971115,0.71142559,3150.0,3148.5,1.789]
[1767486971320,0.71142559,3150.0,3148.7,0.00475888]
[1767486976214,0.71142559,3150.0,3148.3,1.789]
[1767486976411,0.71142559,3149.9,3148.3,1.789]
[1767486976613,0.71142559,3149.7,3147.9,1.789]
[1767486976817,0.71142559,3149.5,3147.9,1.789]
[1767486977034,0.71142559,3149.5,3147.4,1.789]
[1767486977825,0.71142559,3149.5,3147.4,1.94792]
[1767486978130,4.95582,3149.6,3147.7,0.72464816]
[1767486979526,5.66724559,3149.6,3147.7,0.72464816]
[1767486980444,0.71142559,3149.5,3147.7,0.72464816]
[1767486982034,0.71142559,3149.5,3147.8,1.789]
[1767486982433,0.71142559,3149.5,3147.6,1.789]
[1767486983026,6.71142559,3149.5,3147.6,1.789]
[1767486983229,0.71142559,3149.4,3147.6,1.789]
[1767486983431,0.00475888,3148.8,3147.6,1.789]
[1767486983632,0.00475888,3148.8,3147.2,0.72464816]
[1767486984128,0.00799686,3148.8,3147.2,0.7273405]
[1767486987633,0.71942245,3148.8,3147.2,0.7273405]
[1767486990543,0.87828245,3148.8,3147.2,0.00269234]
[1767486991331,0.00799686,3148.8,3147.2,6.71939001]
[1767486991532,0.73384533,3148.8,3147.2,0.00269234]
[1767486995141,0.73384533,3148.8,3147.2,0.7208952]
[1767486996649,0.73384533,3148.8,3147.3,1.789]
[1767487000157,0.73384533,3148.8,3147.2,0.7208952]
[1767487000648,0.15886,3148.7,3147.2,0.00269234]
[1767487000951,0.72584847,3148.6,3147.2,0.00269234]
[1767487005147,0.72584847,3147.7,3145.9,0.71820286]
[1767487005341,0.72584847,3147.5,3145.9,0.71820286]
[1767487005548,0.00476675,3147.1,3145.9,0.71820286]
[1767487006041,0.00476675,3147.1,3145.9,0.00304172]
[1767487007544,0.00476675,3147.1,3145.9,0.72124458]
[1767487008248,0.00476675,3147.1,3145.9,0.00304172]
[1767487011054,0.73061522,3147.1,3145.9,0.00304172]
[1767487016156,4.791,3147.0,3145.9,0.00304172]
[1767487016358,0.00476675,3147.1,3145.9,0.00304172]
[1767487016557,4.791,3147.0,3145.9,0.00304172]
[1767487016758,0.00476675,3147.1,3145.9,0.00304172]
[1767487016958,4.791,3147.0,3145.9,0.00304172]
[1767487019064,0.00476675,3147.1,3145.9,0.00304172]
[1767487019266,4.791,3147.0,3145.9,0.00304172]
[1767487019953,5.53214473,3147.0,3145.9,0.00304172]
[1767487020153,0.74114473,3146.9,3145.9,0.00304172]
[1767487020867,0.90009473,3146.9,3145.9,0.00304172]
[1767487022163,0.74114473,3146.8,3145.0,0.74052128]
[1767487022362,0.74114473,3146.6,3144.5,0.74052128]
[1767487022567,0.74114473,3146.4,3144.5,0.74052128]
[1767487022861,0.74114473,3146.4,3144.0,0.89962128]
[1767487023068,0.00476675,3145.5,3144.0,0.89962128]
[1767487023261,0.00476675,3145.5,3144.2,0.74052128]
[1767487024855,3.179,3146.7,3144.5,0.74528803]
[1767487025159,3.179,3146.7,3144.5,0.90435803]
[1767487025160,4.476,3146.3,3144.5,0.90435803]
[1767487025560,4.792,3146.3,3144.7,0.74052128]
[1767487025865,0.00476675,3145.8,3144.7,0.74052128]
[1767487026458,0.00306721,3146.4,3144.9,1.5497948]
[1767487026766,0.00306721,3146.4,3145.0,0.74052128]
[1767487026960,0.00306721,3146.4,3145.0,6.74052128]
[1767487027167,0.00306721,3146.4,3145.5,0.74052128]
[1767487027361,0.00306721,3146.4,3145.5,6.74052128]
[1767487027669,1.85,3147.1,3145.5,6.74052128]
[1767487027861,1.85,3147.1,3145.5,0.74052128]
[1767487028466,0.00476675,3146.6,3146.0,0.00476675]
[1767487031375,6.00476675,3146.6,3145.0,0.74052128]
[1767487031571,0.00476675,3146.6,3145.0,0.74052128]
[1767487031962,0.74591148,3146.6,3145.0,0.74052128]
[1767487032271,0.74591148,3146.6,3144.6,0.74052128]
[1767487032669,0.74591148,3146.6,3144.7,0.74052128]
[1767487033171,0.74591148,3146.6,3144.8,0.80927352]
[1767487033376,0.00476675,3146.6,3145.1,0.74052128]
[1767487035370,0.00476675,3146.6,3145.2,0.74052128]
[1767487036273,0.00476675,3146.6,3145.6,0.00476675]
[1767487037668,6.74591148,3146.6,3145.6,0.00476675]
[1767487037973,0.74114473,3146.5,3145.6,0.00476675]
[1767487041574,4.795,3146.4,3145.6,0.00476675]
[1767487041977,4.795,3146.5,3145.6,0.00476675]
[1767487042370,4.79976675,3146.6,3145.6,0.00476675]
[1767487047777,0.00476675,3146.6,3145.6,6.74528803]
[1767487047983,0.00329541,3147.1,3145.7,0.74052128]
[1767487048273,2.97129541,3147.1,3145.7,0.74052128]
[1767487048974,0.00329541,3147.1,3145.7,0.74052128]
[1767487049276,0.00476675,3146.7,3145.7,0.74052128]
[1767487049480,0.00476675,3146.7,3145.7,6.74052128]
[1767487049669,0.00476675,3146.7,3145.8,0.74052128]
[1767487050369,0.00476675,3146.7,3145.8,0.62442128]
[1767487053080,0.00476675,3146.7,3145.6,1.79376675]
[1767487053281,0.00476675,3146.7,3145.7,6.0]
[1767487059687,0.00476675,3146.7,3145.6,0.00476675]
[1767487061182,0.00476675,3146.7,3145.6,0.74810185]
[1767487061885,0.00476675,3146.7,3145.6,0.00476675]
[1767487067592,0.00476675,3146.7,3145.6,0.74810185]
[1767487073494,0.00079443,3146.7,3145.6,0.74810185]
[1767487075897,0.00079443,3146.7,3145.6,0.00476675]
[1767487077800,6.69566997,3146.7,3145.6,0.00476675]
[1767487078899,0.00079443,3146.7,3145.6,0.00476675]
[1767487080807,6.69006409,3146.7,3145.6,0.00476675]
[1767487081002,0.00079443,3146.7,3145.6,0.00476675]
[1767487085902,6.69006409,3146.7,3145.6,0.00476675]
[1767487086108,0.68926966,3146.6,3145.6,0.00476675]
[1767487086800,0.00079443,3146.7,3145.6,0.00476675]
[1767487088201,6.68926966,3146.6,3145.6,0.00476675]
[1767487088403,0.68926966,3146.5,3145.6,0.00476675]
[1767487090408,6.68926966,3146.4,3145.6,0.00476675]
[1767487090600,0.00079443,3146.7,3144.9,0.15905]
[1767487090601,0.68926966,3146.3,3144.9,0.15905]
[1767487091695,0.68926966,3146.3,3145.3,0.00476675]
[1767487092102,4.786,3146.6,3145.3,0.00476675]
[1767487093305,0.69006409,3146.7,3145.3,0.00476675]
[1767487093502,11.47506409,3146.7,3145.3,0.00476675]
[1767487093702,0.68926966,3146.6,3145.3,0.00476675]
[1767487093906,4.786,3146.6,3145.3,0.00476675]
[1767487094410,5.47526966,3146.6,3145.3,0.00476675]
[1767487098302,0.68926966,3146.6,3145.3,0.5341473]
[1767487098507,5.47626966,3146.6,3145.3,0.5341473]
[1767487098804,4.787,3146.6,3145.3,0.5341473]
[1767487099006,0.00079443,3146.7,3145.4,0.68286211]
[1767487100712,0.00079443,3146.7,3145.7,0.52938055]
[1767487104009,0.00079443,3146.7,3145.4,6.68286211]
[1767487104210,0.69006409,3146.7,3145.3,0.00476675]
[1767487105118,0.68926966,3146.5,3145.3,0.00476675]
[1767487105309,0.84823966,3146.5,3144.6,5.74467211]
[1767487105508,0.84823966,3146.5,3144.4,0.15908]
[1767487106413,0.15898,3146.4,3145.1,0.00476675]
[1767487106621,0.68926966,3146.3,3145.1,0.00476675]
[1767487107822,0.84826966,3146.1,3145.1,0.00476675]
[1767487108121,0.84826966,3146.1,3144.2,0.68286211]
[1767487108122,0.68926966,3145.8,3144.0,0.00395351]
[1767487108316,0.84827966,3145.8,3144.0,0.00395351]
[1767487108624,0.68926966,3145.5,3144.0,0.00395351]
[1767487108818,1.21865021,3145.5,3144.0,0.00395351]
[1767487109026,6.68926966,3145.4,3144.0,0.00395351]
[1767487109223,0.68926966,3145.0,3144.4,0.00399854]
[1767487109517,0.68926966,3144.9,3144.0,0.00395351]
[1767487111227,4.785,3145.0,3144.0,0.00395351]
[1767487113926,0.00476675,3145.1,3144.0,0.00395351]
[1767487114229,0.00476675,3145.1,3144.0,0.7109205]
[1767487115034,0.00476675,3145.1,3144.0,6.7109205]
[1767487116329,0.00476675,3145.1,3144.1,0.70696699]
[1767487116521,1.751,3145.9,3144.1,0.70696699]
[1767487117532,0.00476675,3145.3,3144.1,0.70696699]
[1767487117735,0.67123443,3146.2,3144.5,0.70696699]
[1767487117926,5.08423443,3146.2,3144.5,0.70696699]
[1767487118236,0.67123443,3146.1,3144.4,0.00476675]
[1767487118926,0.00476675,3145.6,3144.4,0.00476675]
[1767487119130,0.67600118,3145.6,3144.4,0.00476675]
[1767487120733,6.67600118,3145.6,3144.4,0.00476675]
[1767487121029,0.67123443,3145.5,3144.4,0.00476675]
[1767487122137,0.67123443,3145.3,3144.0,0.00395351]
[1767487122336,0.67123443,3145.1,3144.0,0.00395351]
[1767487123236,0.67123443,3145.1,3144.2,0.00476675]
[1767487127152,0.66353443,3145.1,3144.2,0.00476675]
[1767487131138,4.785,3145.2,3144.2,0.00476675]
[1767487131540,4.785,3145.2,3144.4,0.53007378]
[1767487131738,4.785,3145.2,3144.2,0.00476675]
[1767487132045,0.00476675,3145.6,3144.6,0.53007378]
[1767487134645,0.00476675,3145.6,3144.9,0.53007378]
[1767487135144,0.00476675,3145.6,3145.1,0.53007378]
[1767487136446,0.00476675,3145.6,3144.6,6.70696699]
[1767487136647,0.00476675,3145.6,3144.6,0.70696699]
[1767487137845,0.00476675,3145.6,3144.6,6.70696699]
[1767487138733,0.00476675,3145.6,3144.2,0.71173374]
[1767487140548,0.00476675,3145.6,3144.4,0.66628732]
[1767487141348,0.00476675,3145.6,3144.2,0.16385675]
[1767487141549,0.00476675,3145.6,3144.2,6.83014407]
[1767487142351,0.00476675,3145.6,3144.2,0.83014407]
[1767487145651,0.00476675,3145.6,3144.2,0.67105407]
[1767487145846,0.65860161,3145.6,3144.2,0.00476675]
[1767487153657,0.65383486,3145.5,3144.2,0.00476675]
[1767487155655,0.81286486,3145.4,3144.2,0.00476675]
[1767487158459,0.65383486,3145.2,3144.2,0.00476675]
[1767487160957,0.15903,3145.4,3144.2,0.5348065]
[1767487161166,0.15903,3145.4,3144.4,0.53003975]
[1767487161364,0.15903,3145.4,3144.2,0.5348065]
[1767487162657,0.15903,3145.4,3144.2,0.5064065]
[1767487163562,4.257,3145.5,3144.5,0.53003975]
[1767487164170,0.00476675,3145.6,3144.8,0.53003975]
[1767487164461,0.00476675,3145.6,3145.1,0.53003975]
[1767487164852,0.00476675,3145.6,3144.9,0.53003975]
[1767487165262,0.00476675,3145.6,3145.2,0.53003975]
[1767487165467,3.83483486,3146.5,3145.2,0.53003975]
[1767487165468,0.65383486,3146.5,3145.2,0.53003975]
[1767487166459,0.00476675,3146.2,3145.5,0.00476675]
[1767487175165,0.00476675,3146.2,3145.5,0.5348065]
[1767487175759,0.15896,3146.8,3145.7,0.53003975]
[1767487175957,4.93096,3146.8,3145.7,0.53003975]
[1767487176376,4.93096,3146.8,3145.5,0.5348065]
[1767487176674,4.93096,3146.8,3145.5,0.00476675]
[1767487176868,0.00476675,3146.5,3145.5,0.00476675]
[1767487177663,0.66990401,3146.5,3145.5,0.00476675]
[1767487179572,0.82887401,3146.5,3145.5,0.00476675]
[1767487179774,0.82411726,3146.4,3144.6,3.94576144]
[1767487180073,6.00476675,3146.5,3144.2,0.66438576]
[1767487180074,0.82412726,3146.2,3144.4,3.94576144]
[1767487180377,0.82412726,3146.2,3144.2,0.66438576]
[1767487180978,0.82412726,3146.2,3144.9,0.00476675]
[1767487184986,0.66513726,3146.1,3144.9,0.00476675]
[1767487185788,0.66513726,3145.9,3144.9,0.00476675]
[1767487186083,4.77,3146.0,3144.9,0.00476675]
[1767487186388,0.66513726,3145.9,3144.9,0.00476675]
[1767487189883,0.66513726,3145.8,3144.2,3.94576144]
[1767487190284,0.66513726,3145.8,3144.1,3.94576144]
[1767487190888,0.66513726,3145.8,3144.2,0.66438576]
[1767487192394,0.66513726,3145.8,3144.1,3.94576144]
[1767487194101,0.66513726,3145.8,3144.1,4.6101472]
[1767487194395,4.771,3145.7,3144.1,4.6101472]
[1767487195099,4.771,3145.7,3144.2,0.66438576]
[1767487196702,5.43613726,3145.7,3144.2,0.66438576]
[1767487196891,0.66513726,3145.6,3144.1,3.94576144]
[1767487199994,0.66513726,3145.6,3144.0,0.00395351]
[1767487201704,0.82415726,3145.6,3144.0,0.00395351]
[1767487202393,0.6555016,3145.4,3144.0,0.00395351]
[1767487202594,0.8145316,3145.4,3144.0,0.00395351]
[1767487203498,0.8145416,3145.2,3144.0,0.00395351]
[1767487203807,0.00476675,3144.9,3144.0,0.00395351]
[1767487203995,4.772,3144.8,3144.0,0.00395351]
[1767487204195,4.7753322,3144.8,3144.0,0.00395351]
[1767487215105,0.0033322,3144.8,3144.0,0.67229095]
[1767487215303,0.15902,3145.7,3144.3,0.66833744]
[1767487215505,4.775,3145.6,3144.3,0.66833744]
[1767487216401,0.00476675,3145.3,3144.6,0.00476675]
[1767487222709,0.00476675,3145.3,3144.6,6.00476675]
[1767487226617,0.6555016,3146.2,3144.8,1.19783974]
[1767487226809,0.6555016,3146.2,3144.6,0.00476675]
[1767487226810,4.773,3146.1,3144.6,0.00476675]
[1767487227204,5.4285016,3146.1,3144.6,0.00476675]
[1767487227408,0.6555016,3146.0,3144.6,0.00476675]
[1767487227714,0.00476675,3145.6,3144.6,0.00476675]
[1767487228922,0.00476675,3145.6,3144.8,1.19783974]
[1767487229116,0.00391814,3146.0,3144.9,0.66833744]
[1767487229804,0.00391814,3146.0,3145.2,0.5295023]
[1767487230010,0.00476675,3145.9,3145.2,1.21348568]
[1767487231113,0.00776974,3145.9,3145.2,1.21348568]
[1767487231920,4.771,3146.6,3145.3,6.63888672]
[1767487232117,4.771,3146.6,3145.3,0.63888672]
[1767487233318,0.00476675,3146.3,3145.3,0.63888672]
[1767487234125,0.00476675,3146.3,3144.9,0.63888672]
[1767487235611,0.64964088,3146.3,3144.8,1.94806]
[1767487235823,0.64964088,3146.3,3144.6,1.79376675]
[1767487236013,0.64964088,3146.3,3144.6,2.96215577]
[1767487236213,0.64964088,3146.3,3144.7,0.63888672]
[1767487238518,0.64964088,3146.3,3145.1,0.52961618]
[1767487238723,0.64487413,3146.2,3144.6,0.00476675]
[1767487238923,1.17449031,3145.9,3144.6,0.00476675]
[1767487239228,0.64487413,3145.8,3144.6,0.00476675]
[1767487239925,0.64487413,3145.8,3144.6,0.53438293]
[1767487241123,1.17449031,3145.7,3144.6,0.00476675]
[1767487241525,0.64487413,3145.7,3144.6,0.00476675]
[1767487244826,0.64487413,3146.1,3144.8,0.52961618]
[1767487245621,0.15899,3146.2,3145.1,0.52961618]
[1767487247024,0.00476675,3146.3,3145.1,0.52961618]
[1767487249827,0.52961618,3145.7,3144.6,0.00476675]
[1767487250127,1.17449031,3145.9,3144.6,0.00476675]
[1767487250318,1.17449031,3145.9,3144.6,0.53438293]
[1767487251131,1.17449031,3145.9,3144.6,0.00476675]
[1767487251329,0.00476675,3146.3,3144.6,0.00476675]
[1767487251330,0.00476675,3146.3,3145.0,0.52961618]
[1767487251528,0.64487413,3146.2,3145.0,0.52961618]
[1767487251920,6.64487413,3146.2,3145.0,0.52961618]
[1767487252128,0.64487413,3146.2,3145.0,0.52961618]
[1767487252433,0.00476675,3146.3,3145.2,0.52961618]
[1767487253730,0.00476675,3146.3,3145.0,0.52961618]
[1767487253925,0.64964088,3146.3,3145.0,0.52961618]
[1767487259739,0.64964088,3146.3,3144.8,0.52961618]
[1767487260334,0.00476675,3146.3,3145.1,0.52961618]
[1767487260540,0.00476675,3146.3,3145.4,0.52961618]
[1767487261629,0.00476675,3146.3,3145.1,0.52961618]
[1767487262540,0.68712246,3146.3,3145.1,0.52961618]
[1767487263640,1.21197189,3146.2,3144.8,0.52961618]
[1767487263839,0.68235571,3146.1,3144.8,0.52961618]
[1767487265136,0.68235571,3145.8,3144.6,0.53438293]
[1767487265336,0.68235571,3145.8,3144.6,0.00476675]
[1767487266941,0.68235571,3145.6,3144.6,0.00476675]
[1767487267143,5.44135571,3145.6,3144.6,0.00476675]
[1767487267343,1.21197189,3145.3,3144.6,0.00476675]
[1767487267943,0.68235571,3145.3,3144.6,0.00476675]
[1767487270351,0.68235571,3145.2,3144.0,0.53356969]
[1767487271753,0.68235571,3145.2,3144.3,0.00476675]
[1767487272443,4.759,3145.6,3144.3,0.53438293]
[1767487272951,5.28861618,3145.6,3144.3,0.53438293]
[1767487273150,5.97097189,3145.6,3144.3,0.53438293]
[1767487273345,1.21197189,3145.3,3144.3,0.00476675]
[1767487274456,0.68235571,3145.3,3144.3,0.00476675]
[1767487275547,0.68235571,3146.7,3144.9,0.63600897]
[1767487275748,0.52961618,3146.5,3145.1,0.52961618]
[1767487277150,0.52961618,3146.5,3144.9,0.63600897]
[1767487277352,0.52961618,3146.5,3145.0,0.52961618]
[1767487280646,0.52961618,3145.9,3144.5,0.63600897]
[1767487283255,1.21197189,3145.9,3144.4,1.789]
[1767487283458,0.52961618,3145.7,3144.3,0.00476675]
[1767487283660,1.21197189,3145.7,3144.3,0.00476675]
[1767487284657,0.68235571,3145.6,3144.3,0.00476675]
[1767487287963,0.68235571,3145.6,3144.3,0.53438293]
[1767487290970,0.52961618,3145.5,3144.3,0.00476675]
[1767487292356,0.52961618,3145.3,3144.3,0.00476675]
[1767487292555,1.19768159,3145.3,3144.3,0.00476675]
[1767487292867,0.66806541,3145.3,3144.3,0.00476675]
[1767487293863,0.52961618,3145.6,3144.3,0.53438293]
[1767487294967,1.19768159,3145.6,3144.3,0.53438293]
[1767487296866,0.66806541,3145.5,3144.3,0.53438293]
[1767487298573,0.66806541,3145.5,3144.3,0.00476675]
[1767487298867,1.19768159,3145.4,3144.3,0.00476675]
[1767487299054,0.66806541,3145.4,3144.3,0.00476675]
[1767487314373,0.15902,3145.6,3144.3,0.00476675]
[1767487314876,4.76,3146.1,3144.4,0.66307819]
[1767487315066,1.06140304,3146.0,3144.4,0.66307819]
[1767487315267,1.06140304,3145.9,3144.4,0.66307819]
[1767487315468,0.66806541,3146.0,3144.4,0.66307819]
[1767487315665,1.06134559,3145.9,3144.4,0.66307819]
[1767487315861,0.66806541,3146.0,3144.4,0.66307819]
[1767487316172,0.66806541,3146.0,3144.5,2.98203895]
[1767487316367,4.76,3146.1,3144.6,0.66307819]
[1767487320373,0.64771481,3146.0,3144.5,1.789]
[1767487321880,0.64771481,3146.0,3144.6,1.789]
[1767487322573,0.64771481,3145.8,3144.6,1.789]
[1767487324875,0.64771481,3145.7,3144.6,1.789]
[1767487325072,0.64771481,3145.7,3144.6,0.21900879]
[1767487325274,1.05997104,3145.6,3144.6,0.21900879]
[1767487325473,0.64771481,3145.7,3144.6,0.21900879]
[1767487325678,7.060002,3145.6,3144.6,0.21900879]
[1767487325882,6.0,3145.6,3144.6,0.21900879]
[1767487328286,6.15902,3145.6,3144.6,0.21033987]
[1767487328588,1.05997047,3145.5,3144.6,0.21033987]
[1767487328787,4.763,3145.4,3144.6,0.21033987]
[1767487331077,4.763,3145.4,3144.6,0.20701351]
[1767487331387,10.763,3145.4,3144.6,0.20701351]
[1767487332887,10.92203,3145.4,3144.3,0.00476675]
[1767487333291,0.15904,3145.2,3144.3,0.00476675]
[1767487343602,4.763,3145.4,3144.3,0.6762004]
[1767487344008,4.763,3145.4,3144.5,0.67143365]
[1767487347607,0.00476675,3146.3,3144.7,0.67143365]
[1767487347913,5.83892407,3146.2,3144.7,0.67143365]
[1767487348105,4.78,3146.2,3144.7,0.67143365]
[1767487351910,4.78,3146.2,3145.1,0.64786763]
[1767487352303,4.78,3146.2,3145.3,0.64786763]
[1767487352805,0.00251235,3146.6,3145.5,0.64786763]
[1767487354010,0.00476675,3146.4,3145.5,0.64786763]
[1767487354408,4.779,3146.8,3145.6,0.64786763]
[1767487355410,0.00476675,3146.5,3145.9,0.00476675]
[1767487355619,0.00476675,3146.5,3145.9,0.65263438]
[1767487356813,0.00476675,3146.5,3145.9,0.00476675]
[1767487360312,6.00476675,3146.5,3145.9,0.00476675]
[1767487360514,6.5343954,3146.5,3145.5,0.64786763]
[1767487360816,0.52962865,3146.3,3145.5,0.64786763]
[1767487361404,0.52962865,3146.1,3145.6,0.00476675]
[1767487361809,4.781,3146.2,3145.6,0.00476675]
[1767487368320,4.781,3146.2,3145.1,0.64786763]
[1767487369332,4.781,3146.2,3145.3,0.00476675]
[1767487370425,0.52962865,3146.1,3145.3,0.00476675]
[1767487371437,0.52962865,3145.9,3144.7,0.64786763]
[1767487372233,0.52962865,3145.9,3145.0,0.00476675]
[1767487374532,4.781,3146.2,3145.0,0.65263438]
[1767487374732,5.31062865,3146.2,3145.0,0.65263438]
[1767487375626,0.52962865,3146.0,3145.0,0.65263438]
[1767487381132,4.781,3146.2,3145.0,0.65263438]
[1767487384331,4.781,3146.2,3145.6,0.68632998]
[1767487386936,0.00476675,3146.5,3145.6,0.68632998]
[1767487388940,0.00476675,3146.5,3145.3,0.68632998]
[1767487389342,0.00476675,3146.5,3145.6,0.68632998]
[1767487393945,0.00476675,3146.5,3146.1,0.68632998]
[1767487395848,4.793,3146.6,3146.1,0.68632998]
[1767487396049,4.803,3147.0,3146.3,0.68632998]
[1767487397144,4.81043315,3147.0,3146.3,0.68901447]
[1767487400953,4.81043315,3147.0,3146.6,0.68632998]
[1767487401945,0.15892,3147.6,3146.6,0.68632998]
[1767487402252,4.809,3147.5,3146.6,0.68632998]
[1767487402451,4.809,3147.5,3146.9,0.68632998]
[1767487402942,4.81611655,3147.5,3146.9,0.69109673]
[1767487411446,4.81611655,3147.5,3147.0,0.74110364]
[1767487412543,0.00711655,3147.5,3147.0,0.74110364]
[1767487415764,4.815,3148.5,3147.5,0.68149931]
[1767487415973,5.34462865,3148.9,3147.6,0.68149931]
[1767487416661,0.00476675,3148.6,3147.6,0.68149931]
[1767487416857,0.52962865,3148.5,3147.6,0.68149931]
[1767487417063,4.815,3148.4,3147.6,0.68149931]
[1767487420765,4.815,3148.4,3147.3,0.68149931]
[1767487422467,4.815,3148.4,3146.9,0.68626606]
[1767487426568,4.815,3148.4,3147.0,0.68149931]
[1767487435975,1.05502397,3148.3,3147.0,0.68149931]
[1767487436173,4.815,3148.4,3147.0,0.68149931]
[1767487436370,1.05510659,3148.3,3147.0,0.68149931]
[1767487436569,4.815,3148.4,3147.0,0.68149931]
[1767487436864,1.05510658,3148.3,3146.9,0.00476675]
[1767487437070,10.97388,3148.4,3146.9,0.00476675]
[1767487437271,1.05517922,3148.3,3146.9,0.00476675]
[1767487437477,10.97388,3148.4,3146.9,0.00476675]
[1767487437678,1.05517922,3148.3,3146.9,0.00476675]
[1767487437978,10.97388,3148.4,3146.9,0.68626606]